Workbook

Sheet 终版
A1: 附件6:
A2: 第八届中国国际“互联网+”大学生创新创业大赛各学院（所）参赛作品名额分配表
A3: 序号 | B3: 院系 | C3: 主赛道作品数 | F3: 青年红色筑梦之旅赛道作品数 | G3: 总计
C4: 本科生 | D4: 研究生 | E4: 合计
A5: 1 | B5: 农 学 院 | C5: 31 | D5: 19 | E5: =C5+D5 -> 50 | F5: 8 | G5: =E5+F5 -> 58
A6: 2 | B6: 植保学院 | C6: 29 | D6: 14 | E6: =C6+D6 -> 43 | F6: 8 | G6: =E6+F6 -> 51
A7: 3 | B7: 园艺学院 | C7: 33 | D7: 16 | E7: 49 | F7: 8 | G7: 57
A8: 4 | B8: 动科学院 | C8: 32 | D8: 16 | E8: 48 | F8: 8 | G8: 56
A9: 5 | B9: 动医学院 | C9: 31 | D9: 15 | E9: 46 | F9: 8 | G9: 54
A10: 6 | B10: 草业学院 | C10: 15 | D10: 8 | E10: 23 | F10: 6 | G10: 29
A11: 7 | B11: 林 学 院 | C11: 33 | D11: 17 | E11: 50 | F11: 9 | G11: 59
A12: 8 | B12: 园林学院 | C12: 28 | D12: 14 | E12: 42 | F12: 8 | G12: 50
A13: 9 | B13: 资环学院 | C13: 40 | D13: 20 | E13: 60 | F13: 9 | G13: 69
A14: 10 | B14: 水建学院 | C14: 50 | D14: 25 | E14: 75 | F14: 11 | G14: 86
A15: 11 | B15: 机电学院 | C15: 37 | D15: 18 | E15: 55 | F15: 9 | G15: 64
A16: 12 | B16: 信息学院 | C16: 30 | D16: 15 | E16: 45 | F16: 8 | G16: 53
A17: 13 | B17: 食品学院 | C17: 37 | D17: 18 | E17: 55 | F17: 9 | G17: 64
A18: 14 | B18: 葡酒学院 | C18: 22 | D18: 11 | E18: 33 | F18: 7 | G18: 40
A19: 15 | B19: 生命学院 | C19: 32 | D19: 16 | E19: 48 | F19: 8 | G19: 56
A20: 16 | B20: 理 学 院 | C20: 16 | D20: 8 | E20: 24 | F20: 6 | G20: 30
A21: 17 | B21: 化药学院 | C21: 21 | D21: 10 | E21: 31 | F21: 7 | G21: 38
A22: 18 | B22: 经管学院 | C22: 46 | D22: 23 | E22: 69 | F22: 10 | G22: 79
A23: 19 | B23: 人文学院 | C23: 31 | D23: 15 | E23: 46 | F23: 8 | G23: 54
A24: 20 | B24: 马克思主义学院 | C24: 0 | D24: 10 | E24: 10 | F24: 5 | G24: 15
A25: 21 | B25: 语言学院 | C25: 15 | D25: 3 | E25: 18 | F25: 5 | G25: 23
A26: 22 | B26: 创新学院 | C26: 19 | D26: 0 | E26: 19 | F26: 5 | G26: 24
A27: 23 | B27: 水 保 所 | C27: 0 | D27: 10 | E27: 10 | F27: 5 | G27: 15
A28: 总计 | C28: =SUM(C5:C27) -> 628 | D28: =SUM(D5:D27) -> 321 | E28: 949 | F28: =SUM(F5:F27) -> 175 | G28: =SUM(G5:G27) -> 1124

Sheet 原始 (hidden)
A1: 附件3:
A2: 西北农林科技大学第四届“互联网+”创新创业大赛 参赛作品名额分配表
A3: 序号 | B3: 院系 | C3: 本科生人数 | D3: 研究生人数 | E3: 合计 | F3: 本科生 项目数 | G3: 研究生 项目数 | H3: 主赛道应参赛 作品总数 | I3: 本科生 项目数 | J3: 研究生 项目数 | K3: 青年红旅赛道应参赛作品数
A4: 1 | B4: 农学院 | C4: =[1]Sheet1!C3 -> 710 | D4: =[2]Sheet1!$J$15 -> 565 | E4: =SUM(C4:D4) -> 1275 | F4: =CEILING(C4*0.020748323,1) -> 15 | G4: =CEILING(D4*0.020748323,1) -> 12 | H4: =F4+G4 -> 27 | I4: 3.00 | J4: 2.00 | K4: =I4+J4 -> 5.00
A5: 2 | B5: 植保学院 | C5: =[1]Sheet1!C4 -> 659 | D5: 621 | E5: =SUM(C5:D5) -> 1280 | F5: =CEILING(C5*0.020748323,1) -> 14 | G5: =CEILING(D5*0.020748323,1) -> 13 | H5: 27 | I5: 3.00 | J5: 3.00 | K5: =I5+J5 -> 6.00
A6: 3 | B6: 园艺学院 | C6: =[1]Sheet1!C5 -> 784 | D6: 690 | E6: 1474 | F6: 17 | G6: 15 | H6: 32 | I6: 4.00 | J6: 3.00 | K6: 7.00
A7: 4 | B7: 动科学院 | C7: 805 | D7: 591 | E7: 1396 | F7: 17 | G7: 13 | H7: 30 | I7: 4.00 | J7: 3.00 | K7: 7.00
A8: 5 | B8: 动医学院 | C8: =[1]Sheet1!C7 -> 891 | D8: 545 | E8: 1436 | F8: 19 | G8: 12 | H8: 31 | I8: 2.00 | J8: 2.00 | K8: 4.00
A9: 6 | B9: 草业学院 | C9: 189 | D9: 72 | E9: =C9+D9 -> 261 | F9: 2 | G9: 1 | H9: 3 | I9: 1.00 | J9: 0.00 | K9: 1.00
A10: 7 | B10: 林学院 | C10: =[1]Sheet1!C8 -> 1081 | D10: 472 | E10: =C10+D10 -> 1553 | F10: 23 | G10: 10 | H10: 33 | I10: 5.00 | J10: 2.00 | K10: 7.00
A11: 8 | B11: 园林学院 | C11: =[1]Sheet1!C9 -> 970 | D11: 244 | E11: 1214 | F11: 21 | G11: 6 | H11: 27 | I11: 4.00 | J11: 1.00 | K11: 5.00
A12: 9 | B12: 资环学院 | C12: =[1]Sheet1!C10 -> 1359 | D12: 653 | E12: 2012 | F12: 29 | G12: 14 | H12: 43 | I12: 6.00 | J12: 3.00 | K12: 9.00
A13: 10 | B13: 水建学院 | C13: =[1]Sheet1!C11 -> 2256 | D13: 535 | E13: 2791 | F13: 47 | G13: 12 | H13: 59 | I13: 9.00 | J13: 2.00 | K13: 11.00
A14: 11 | B14: 机电学院 | C14: =[1]Sheet1!C12 -> 1648 | D14: 255 | E14: 1903 | F14: 35 | G14: 6 | H14: 41 | I14: 7.00 | J14: 1.00 | K14: 8.00
A15: 12 | B15: 信息学院 | C15: =[1]Sheet1!C13 -> 1338 | D15: 141 | E15: 1479 | F15: 27 | G15: 3 | H15: 30 | I15: 6.00 | J15: 1.00 | K15: 7.00
A16: 13 | B16: 食品学院 | C16: =[1]Sheet1!C14 -> 1364 | D16: 416 | E16: 1780 | F16: 29 | G16: 9 | H16: 38 | I16: 6.00 | J16: 2.00 | K16: 8.00
A17: 14 | B17: 葡酒学院 | C17: =[1]Sheet1!C15 -> 561 | D17: 101 | E17: 662 | F17: 12 | G17: 3 | H17: 15 | I17: 2.00 | J17: 1.00 | K17: 3.00
A18: 15 | B18: 生命学院 | C18: =[1]Sheet1!C16 -> 1210 | D18: 519 | E18: 1729 | F18: 26 | G18: 11 | H18: 37 | I18: 5.00 | J18: 2.00 | K18: 7.00
A19: 16 | B19: 理学院 | C19: =[1]Sheet1!C17 -> 221 | D19: 63 | E19: 284 | F19: 2 | G19: 1 | H19: 3 | I19: 1.00 | J19: 0.00 | K19: 1.00
A20: 17 | B20: 化药学院 | C20: =[1]Sheet1!C18 -> 476 | D20: 274 | E20: 750 | F20: 10 | G20: 6 | H20: 16 | I20: 2.00 | J20: 1.00 | K20: 3.00
A21: 18 | B21: 经管学院 | C21: =[1]Sheet1!C19 -> 2451 | D21: 686 | E21: 3137 | F21: 51 | G21: 15 | H21: 66 | I21: 10.00 | J21: 3.00 | K21: 13.00
A22: 19 | B22: 人文学院 | C22: =[1]Sheet1!C20 -> 1077 | D22: 445 | E22: 1522 | F22: 23 | G22: 10 | H22: 33 | I22: 4.00 | J22: 2.00 | K22: 6.00
A23: 20 | B23: 外语 | C23: =[1]Sheet1!C21 -> 354 | D23: 23 | E23: 377 | F23: 4 | G23: 1 | H23: 5 | I23: 1.00 | J23: 0.00 | K23: 1.00
A24: 21 | B24: 创新学院 | C24: 478 | D24: 0 | E24: 478 | F24: 4 | G24: 0 | H24: 4 | I24: 1.00 | J24: =D24*0.004149665 -> 0.00 | K24: 1.00
A25: 总计 | C25: =SUM(C4:C24) -> 20882 | D25: =SUM(D4:D24) -> 7911 | E25: 28793 | F25: =SUM(F4:F24) -> 427 | G25: 173 | H25: 600 | I25: 86.00 | J25: 34 | K25: 120.00
A26: 备注：各院系学生人数按照2017年9月统计数据为准。按照陕西省赛区工作安排，各单位参赛作品数量不少于学生总人数2%，其中研究生负责申报的作品不少于所有作品的30%。 | I26: 82.00 | J26: 33
